fUSD/lending_fUSD_20241206
["ID","MTS","AMOUNT","RATE_DAILY","PERIOD"]
[344454232,1733490638534,-1166.0,7.31e-05,2]
[344454233,1733490638543,-281.746,7.31e-05,2]
[344454234,1733490638552,-278.839,7.31e-05,2]
[344454235,1733490638562,-496.31,7.31e-05,2]
[344454236,1733490638571,-496.8,7.31e-05,2]
[344454237,1733490638580,-167.99,7.397e-05,2]
[344454238,1733490638589,-420.0,7.464e-05,2]
[344454239,1733490638599,-2996.10236915,7.52e-05,2]
[344454246,1733490639864,-3124.39503085,7.52e-05,2]
[344454247,1733490639874,-2028.0399,7.52e-05,2]
[344454248,1733490639884,-165.39,7.559e-05,2]
[344454249,1733490639893,-453.25920097,7.563e-05,2]
[344454250,1733490639903,-13483.61784841,7.585e-05,2]
[344454251,1733490639928,-744.3137028,7.585e-05,2]
[344454252,1733490639939,-265.42357684,7.585e-05,2]
[344454253,1733490639950,-13313.92343412,7.585e-05,2]
[344454254,1733490639962,-1953.66143606,7.585e-05,2]
[344454255,1733490639998,-300.42437459,7.585e-05,2]
[344454256,1733490640009,-6304.66158563,7.585e-05,2]
[344454257,1733490640019,-150.0,7.589e-05,2]
[344454258,1733490640029,-154.77,7.589e-05,2]
[344454259,1733490640039,-150.0,7.589e-05,2]
[344454260,1733490640050,-150.0,7.589e-05,2]
[344454261,1733490640060,-150.0,7.589e-05,2]
[344454262,1733490640070,-300.1,7.589e-05,2]
[344454263,1733490640079,-150.0,7.589e-05,2]
[344454264,1733490640090,-337.513,7.592e-05,2]
[344454265,1733490640100,-908.2032,7.598e-05,2]
[344454266,1733490640111,-310.252,7.598e-05,2]
[344454279,1733490640529,-2587.7348,7.598e-05,2]
[344454281,1733490640555,-264.446,7.598e-05,2]
[344454283,1733490640565,-1964.0,7.6e-05,2]
[344454285,1733490640574,-150.0,7.62e-05,2]
[344454287,1733490640584,-150.0,7.62e-05,2]
[344454289,1733490640593,-6351.56908251,7.677e-05,2]
[344454291,1733490640603,-11291.67836891,7.678e-05,2]
[344454293,1733490640616,-200.0,7.678e-05,2]
[344454294,1733490640629,-200.0,7.679e-05,2]
[344454295,1733490640638,-2009.67615501,7.679e-05,2]
[344454296,1733490640647,-225.73660292,7.679e-05,2]
[344454297,1733490640657,-200.0,7.679e-05,2]
[344454298,1733490640667,-4763.67681188,7.68e-05,2]
[344454299,1733490640676,-6351.56908251,7.68e-05,2]
[344454300,1733490640685,-200.0,7.68e-05,2]
[344454301,1733490640694,-200.0,7.68e-05,2]
[344454302,1733490640704,-200.0,7.68e-05,2]
[344454303,1733490640713,-2679.56820669,7.681e-05,2]
[344454304,1733490640722,-8468.75877668,7.682e-05,2]
[344454305,1733490640732,-200.0,7.682e-05,2]
[344454306,1733490640741,-11291.67836891,7.682e-05,2]
[344454307,1733490640750,-2679.56820669,7.682e-05,2]
[344454308,1733490640759,-4763.67681188,7.682e-05,2]
[344454309,1733490640769,-2009.67615501,7.682e-05,2]
[344454310,1733490640778,-200.0,7.683e-05,2]
[344454311,1733490640787,-200.0,7.683e-05,2]
[344454312,1733490640797,-2009.67615501,7.684e-05,2]
[344454313,1733490640806,-200.0,7.684e-05,2]
[344454314,1733490640815,-200.0,7.685e-05,2]
[344454315,1733490640823,-200.0,7.685e-05,2]
[344454316,1733490640833,-3572.75760891,7.685e-05,2]
[344454317,1733490640842,-2679.56820669,7.685e-05,2]
[344454318,1733490640852,-200.0,7.686e-05,2]
[344454319,1733490640863,-8797.99601647,7.687e-05,2]
[344454320,1733490640875,-2493.68235244,7.687e-05,2]
[344454321,1733490640884,-2560.47014759,7.687e-05,2]
[344454322,1733490640907,-324.80699999,7.687e-05,2]
[344454323,1733490640934,-687.48046133,7.687e-05,2]
[344454324,1733490640943,-626.03177467,7.687e-05,2]
[344454325,1733490640954,-298.2975,7.687e-05,2]
[344454326,1733490640976,-979.0,7.687e-05,2]
[344454327,1733490640987,-468.69000001,7.687e-05,2]
[344454335,1733490643449,-1038.88931759,7.687e-05,2]
[344454336,1733490643464,-1352.76821961,7.687e-05,2]
[344454337,1733490643476,-1842.04432526,7.687e-05,2]
[344454340,1733490643650,-1730.71328365,7.687e-05,2]
[344454341,1733490643663,-200.0,7.687e-05,2]
[344454342,1733490643675,-200.0,7.687e-05,2]
[344454343,1733490643686,-5690.49758097,7.688e-05,2]
[344454344,1733490643700,-2778.26119571,7.688e-05,2]
[344454345,1733490643712,-225.73660292,7.688e-05,2]
[344454346,1733490643723,-200.0,7.689e-05,2]
[344454347,1733490643735,-200.0,7.689e-05,2]
[344454348,1733490643747,-200.0,7.689e-05,2]
[344454349,1733490643758,-200.0,7.689e-05,2]
[344454350,1733490643770,-200.0,7.689e-05,2]
[344454351,1733490643781,-626.00220097,7.689e-05,2]
[344454352,1733490643796,-364.665,7.689e-05,2]
[344454353,1733490643821,-1688.90100572,7.689e-05,2]
[344454354,1733490643833,-3353.37486707,7.69e-05,2]
[344454355,1733490643847,-219.38274184,7.69e-05,2]
[344454356,1733490643859,-225.73660292,7.69e-05,2]
[344454357,1733490643871,-11291.67836891,7.69e-05,2]
[344454358,1733490643882,-3495.90098933,7.691e-05,2]
[344454359,1733490643896,-76.85661958,7.691e-05,2]
[344454360,1733490643908,-5877.55443073,7.691e-05,2]
[344454361,1733490643921,-2003.08177937,7.691e-05,2]
[344454362,1733490643969,-588.12256658,7.691e-05,2]
[344454363,1733490643981,-200.0,7.691e-05,2]
[344454364,1733490643993,-1773.87743342,7.692e-05,2]
[344454365,1733490644019,-9517.80093549,7.692e-05,2]
[344454366,1733490644031,-4763.67681188,7.692e-05,2]
[344454367,1733490644043,-2679.56820669,7.692e-05,2]
[344454368,1733490644055,-200.0,7.693e-05,2]
[344454369,1733490644066,-2009.67615501,7.693e-05,2]
[344454370,1733490644078,-200.0,7.694e-05,2]
[344454371,1733490644089,-225.73660292,7.694e-05,2]
[344454372,1733490644101,-6351.56908251,7.695e-05,2]
[344454373,1733490644117,-5440.90128528,7.695e-05,2]
[344454374,1733490644131,-910.66779723,7.695e-05,2]
[344454375,1733490644143,-1880.24521271,7.695e-05,2]
[344454376,1733490644157,-129.4309423,7.695e-05,2]
[344454377,1733490644168,-2009.67615501,7.695e-05,2]
[344454378,1733490644180,-200.0,7.695e-05,2]
[344454379,1733490644192,-345.31824245,7.695e-05,2]
[344454380,1733490644203,-2288.46481692,7.695e-05,2]
[344454381,1733490644215,-200.0,7.695e-05,2]
[344454382,1733490644226,-1496.08097814,7.695e-05,2]
[344454383,1733490644241,-220.26763455,7.695e-05,2]
[344454384,1733490644252,-200.0,7.695e-05,2]
[344454385,1733490644264,-460.42432326,7.696e-05,2]
[344454386,1733490644276,-200.0,7.696e-05,2]
[344454387,1733490644287,-23.97502303,7.696e-05,2]
[344454388,1733490644301,-176.02497697,7.696e-05,2]
[344454389,1733490644313,-724.08457098,7.696e-05,2]
[344454390,1733490644325,-225.73660292,7.696e-05,2]
[344454391,1733490644336,-16.55384913,7.696e-05,2]
[344454400,1733490645874,-1540.0,7.696e-05,2]
[344454402,1733490645902,-1623.28666795,7.696e-05,2]
[344454403,1733490645917,-673.11000003,7.696e-05,2]
[344454404,1733490645931,-910.72629477,7.696e-05,2]
[344454405,1733490645942,-172.54485664,7.696e-05,2]
[344454406,1733490645985,-536.53736174,7.696e-05,2]
[344454407,1733490646087,-578.86132157,7.696e-05,2]
[344454408,1733490646099,-6351.56908251,7.696e-05,2]
[344454409,1733490646111,-229.10488379,7.696e-05,2]
[344454410,1733490646122,-200.0,7.696e-05,2]
[344454411,1733490646133,-613.89909768,7.696e-05,2]
[344454412,1733490646144,-200.0,7.696e-05,2]
[344454413,1733490646155,-200.0,7.696e-05,2]
[344454414,1733490646167,-200.0,7.696e-05,2]
[344454415,1733490646178,-200.0,7.696e-05,2]
[344454416,1733490646189,-225.73660292,7.696e-05,2]
[344454417,1733490646200,-200.0,7.696e-05,2]
[344454418,1733490646211,-200.0,7.696e-05,2]
[344454419,1733490646222,-200.0,7.696e-05,2]
[344454420,1733490646233,-1985.57901203,7.696e-05,2]
[344454421,1733490646247,-1067.32419377,7.696e-05,2]
[344454422,1733490646257,-238.0434627,7.696e-05,2]
[344454423,1733490646268,-1290.85133989,7.696e-05,2]
[344454424,1733490646303,-3548.19663315,7.696e-05,2]
[344454426,1733490646316,-545.69968983,7.696e-05,2]
[344454430,1733491030624,50000.0,0.00012121,24]
[344454440,1733491647434,17171.31239731,1e-06,7]
[344454484,1733491832218,-157.57,6.301e-05,2]
[344454485,1733491832228,-441.05,6.459e-05,2]
[344454486,1733491832237,-250.0,6.469e-05,2]
[344454487,1733491832246,-250.0,6.469e-05,2]
[344454488,1733491832256,-300.0,6.491e-05,2]
[344454489,1733491832265,-5835.05195372,6.492e-05,2]
[344454490,1733491832276,-9138.59151,6.492e-05,2]
[344454491,1733491832310,-1454.82898337,6.492e-05,2]
[344454492,1733491832371,-7471.52755291,6.492e-05,2]
[344454493,1733491832381,-250.0,6.492e-05,2]
[344454494,1733491832390,-166.66,6.686e-05,2]
[344454495,1733491832399,-459.71,6.78e-05,2]
[344454496,1733491832420,-292.45,6.878e-05,2]
[344454497,1733491832430,-150.0,6.929e-05,2]
[344454498,1733491832439,-92668.0,6.93e-05,2]
[344454499,1733491832449,-150.0,6.944e-05,2]
[344454500,1733491832459,-500.0,6.973e-05,2]
[344454501,1733491832469,-159.92381319,6.973e-05,2]
[344454502,1733491832479,-150.0,6.986e-05,2]
[344454503,1733491832490,-500.0,6.999e-05,2]
[344454504,1733491832500,-211.91546426,6.999e-05,2]
[344454506,1733491832511,-500.0,6.999e-05,2]
[344454508,1733491832522,-562.98928164,6.999e-05,2]
[344454510,1733491832532,-500.0,6.999e-05,2]
[344454511,1733491832542,-500.0,6.999e-05,2]
[344454512,1733491832552,-9110.0453662,7e-05,2]
[344454513,1733491832590,-405.35,7e-05,2]
[344454514,1733491832601,-1243.78618584,7e-05,2]
[344454515,1733491832613,-1228.47,7e-05,2]
[344454538,1733491838768,-262.5,7e-05,2]
[344454539,1733491838796,-1415.179332,7e-05,2]
[344454540,1733491838826,-3771.3267,7e-05,2]
[344454542,1733491838846,-6831.1245974,7e-05,2]
[344454544,1733491838859,-2343.35303067,7e-05,2]
[344454546,1733491838870,-992.94990136,7e-05,2]
[344454547,1733491838881,-2788.05513305,7e-05,2]
[344454550,1733491840071,-496.06666257,7e-05,2]
[344454551,1733491840190,-2332.4323053,7e-05,2]
[344454552,1733491840202,-671.07000009,7e-05,2]
[344454553,1733491840223,-22942.78206701,7e-05,2]
[344454554,1733491840235,-11175.054306,7e-05,2]
[344454670,1733491843270,-7553.46825488,7e-05,2]
[344454671,1733491843339,-1005.7679863,7e-05,2]
[344454672,1733491843418,-5892.05810133,7e-05,2]
[344454673,1733491843573,-9999.996168,7e-05,2]
[344454682,1733491846060,-21776.44687106,7e-05,2]
[344454683,1733491846184,-7498.47134884,7e-05,2]
[344454684,1733491846256,-4008.19721561,7e-05,2]
[344454686,1733491846500,-1115.77256915,7e-05,2]
[344454690,1733492420995,12391.3,9.02e-05,10]
[344454693,1733492734437,2512.14,7.31e-05,5]
[344454694,1733492761061,590.07,5e-05,2]
[344454695,1733492774658,442.55,5e-05,2]
[344454696,1733492789589,663.83,5e-05,2]
[344454697,1733492815183,663.83,5e-05,2]
[344454812,1733493003002,150.0,5e-05,2]
[344454813,1733493003232,290.64737688,5e-05,2]
[344454827,1733493032287,-23900.0,5.752e-05,2]
[344454828,1733493032296,-1252.96,5.86e-05,2]
[344454829,1733493032308,-367.77,5.875e-05,2]
[344454830,1733493032317,-250.0,6.048e-05,2]
[344454831,1733493032326,-250.0,6.084e-05,2]
[344454832,1733493032336,-250.0,6.113e-05,2]
[344454833,1733493032345,-279.39,6.265e-05,2]
[344454834,1733493032354,-157.57,6.301e-05,2]
[344454835,1733493032363,-150.76,6.31e-05,2]
[344454836,1733493032371,-166.66,6.394e-05,2]
[344454837,1733493032380,-681.68,6.4e-05,2]
[344454838,1733493032389,-150.0,6.438e-05,2]
[344454839,1733493032398,-331.81,6.49e-05,2]
[344454840,1733493032408,-302.37,6.492e-05,2]
[344454841,1733493032418,-150.0,6.492e-05,2]
[344454842,1733493032429,-150.0,6.53e-05,2]
[344454843,1733493032439,-367.77,6.609e-05,2]
[344454844,1733493032451,-300.56,6.633e-05,2]
[344454845,1733493032461,-8024.0,6.724e-05,2]
[344454846,1733493032470,-2000.0,6.8e-05,2]
[344454847,1733493032479,-150.0,6.859e-05,2]
[344454848,1733493032488,-2337.726,6.86e-05,2]
[344454849,1733493032497,-174.899,6.86e-05,2]
[344454850,1733493032506,-300.0,6.86e-05,2]
[344454851,1733493032515,-150.0,6.86e-05,2]
[344454852,1733493032524,-150.0,6.86e-05,2]
[344454853,1733493032533,-300.0,6.86e-05,2]
[344454854,1733493032542,-300.0,6.86e-05,2]
[344454855,1733493032554,-3032.8059,6.9e-05,2]
[344454856,1733493032563,-150.0,6.9e-05,2]
[344454857,1733493032572,-150.0,6.9e-05,2]
[344454858,1733493032581,-150.0,6.9e-05,2]
[344454859,1733493032590,-300.0,6.9e-05,2]
[344454860,1733493032599,-150.0,6.9e-05,2]
[344454861,1733493032608,-150.0,6.9e-05,2]
[344454862,1733493032617,-4100.0,6.9e-05,2]
[344454863,1733493032627,-150.0,6.944e-05,2]
[344454864,1733493032635,-150.0,6.944e-05,2]
[344454865,1733493032644,-150.0,6.944e-05,2]
[344454866,1733493032654,-152.46,6.944e-05,2]
[344454867,1733493032663,-159.88430118,6.973e-05,2]
[344454868,1733493032672,-500.0,6.973e-05,2]
[344454869,1733493032681,-500.0,6.973e-05,2]
[344454870,1733493032690,-500.0,6.973e-05,2]
[344454871,1733493032700,-150.0,6.98e-05,2]
[344454872,1733493032711,-150.0,6.98e-05,2]
[344454873,1733493032721,-150.0,6.98e-05,2]
[344454874,1733493032732,-150.0,6.98e-05,2]
[344454875,1733493032741,-150.0,6.98e-05,2]
[344454876,1733493032750,-150.0,6.986e-05,2]
[344454877,1733493032759,-2000.0,6.99e-05,2]
[344454879,1733493032768,-7835.64639217,6.998e-05,2]
[344454881,1733493032778,-40000.0,6.999e-05,2]
[344454882,1733493032787,-867887.92937165,7e-05,2]
[344454883,1733493032850,-274.07189508,7e-05,2]
[344454884,1733493032861,-526.98100397,7e-05,2]
[344454885,1733493032911,-282517.91853469,7e-05,2]
[344454886,1733493032923,-194249.99999953,7e-05,2]
[344454887,1733493032937,-196606.30000358,7e-05,2]
[344454888,1733493032946,-150.0,7e-05,2]
[344454889,1733493032955,-150.0,7e-05,2]
[344454890,1733493032964,-150.0,7e-05,2]
[344454891,1733493032973,-150.0,7e-05,2]
[344454892,1733493032983,-150.0,7e-05,2]
[344454893,1733493032992,-28651.32,7e-05,2]
[344454894,1733493033001,-6100.0,7e-05,2]
[344454895,1733493033011,-150.0,7.037e-05,2]
[344454896,1733493033020,-279.39,7.049e-05,2]
[344454897,1733493033030,-507.65,7.068e-05,2]
[344454898,1733493033039,-150.0,7.132e-05,2]
[344454899,1733493033049,-492.13,7.14e-05,2]
[344454900,1733493033062,-22530.75849793,7.2e-05,2]
[344454901,1733493033072,-1635.4878737,7.2e-05,2]
[344454902,1733493033082,-441.05,7.266e-05,2]
[344454903,1733493033091,-1003.0,7.3e-05,2]
[344454904,1733493033100,-292.54,7.313e-05,2]
[344454905,1733493033110,-292.54,7.313e-05,2]
[344454906,1733493033119,-292.54,7.313e-05,2]
[344454907,1733493033128,-292.54,7.313e-05,2]
[344454908,1733493033137,-292.54,7.313e-05,2]
[344454909,1733493033147,-292.54,7.313e-05,2]
[344454910,1733493033156,-150.0,7.313e-05,2]
[344454911,1733493033165,-150.0,7.313e-05,2]
[344454912,1733493033175,-150.0,7.313e-05,2]
[344454913,1733493033184,-388.45,7.313e-05,2]
[344454914,1733493033193,-150.0,7.313e-05,2]
[344454915,1733493033206,-150.0,7.313e-05,2]
[344454916,1733493033215,-150.0,7.313e-05,2]
[344454917,1733493033224,-292.54,7.313e-05,2]
[344454918,1733493033233,-150.0,7.313e-05,2]
[344454919,1733493033243,-150.0,7.313e-05,2]
[344454920,1733493033252,-150.0,7.313e-05,2]
[344454921,1733493033262,-150.0,7.313e-05,2]
[344454922,1733493033271,-184.15,7.313e-05,2]
[344454923,1733493033280,-150.0,7.313e-05,2]
[344454924,1733493033289,-304.6,7.313e-05,2]
[344454925,1733493033300,-300.0,7.313e-05,2]
[344454926,1733493033311,-300.0,7.313e-05,2]
[344454927,1733493033321,-150.0,7.313e-05,2]
[344454928,1733493033331,-150.0,7.313e-05,2]
[344454929,1733493033340,-150.0,7.313e-05,2]
[344454930,1733493033349,-150.0,7.313e-05,2]
[344454931,1733493033359,-150.0,7.313e-05,2]
[344454932,1733493033369,-150.0,7.313e-05,2]
[344454933,1733493033378,-499.18,7.319e-05,2]
[344454934,1733493033388,-506.55,7.32e-05,2]
[344454935,1733493033397,-924.412,7.32e-05,2]
[344454936,1733493033406,-507.01,7.32e-05,2]
[344454937,1733493033416,-506.59,7.32e-05,2]
[344454938,1733493033425,-507.25,7.32e-05,2]
[344454939,1733493033435,-499.01,7.32e-05,2]
[344454940,1733493033443,-285.28606039,7.323e-05,2]
[344454941,1733493033453,-1262.0,7.324e-05,2]
[344454942,1733493033770,-567.0,7.324e-05,2]
[344454943,1733493033780,-2004.0,7.324e-05,2]
[344454944,1733493033790,-631.0,7.324e-05,2]
[344454945,1733493033801,-150.0,7.324e-05,2]
[344454946,1733493033811,-563.0,7.324e-05,2]
[344454947,1733493033820,-1893.0,7.324e-05,2]
[344454948,1733493033830,-816.0,7.324e-05,2]
[344454949,1733493033839,-1252.0,7.324e-05,2]
[344454950,1733493033848,-3761.0,7.324e-05,2]
[344454951,1733493033858,-3529.0,7.324e-05,2]
[344454952,1733493033867,-975.0,7.324e-05,2]
[344454953,1733493033876,-535.0,7.324e-05,2]
[344454954,1733493033885,-250.0,7.324e-05,2]
[344454955,1733493033894,-13715.0,7.324e-05,2]
[344454956,1733493033904,-151.341,7.324e-05,2]
[344454957,1733493033913,-1166.0,7.324e-05,2]
[344454958,1733493033923,-5964.0,7.324e-05,2]
[344454959,1733493033932,-150.0,7.324e-05,2]
[344454960,1733493033941,-367.77,7.344e-05,2]
[344454961,1733493033951,-641.0,7.364e-05,2]
[344454962,1733493033960,-155.09,7.397e-05,2]
[344454963,1733493033969,-1194.88192352,7.4e-05,2]
[344454964,1733493033979,-1000.0,7.4e-05,2]
[344454965,1733493033988,-1500.0,7.488e-05,2]
[344454966,1733493033998,-334.28917499,7.521e-05,2]
[344454967,1733493034007,-255.0,7.545e-05,2]
[344454968,1733493034016,-17648.59853376,7.585e-05,2]
[344454969,1733493034026,-492.53,7.595e-05,2]
[344454970,1733493034035,-2000.0,7.6e-05,2]
[344454971,1733493034044,-2000.0,7.6e-05,2]
[344454972,1733493034055,-1000.0,7.6e-05,2]
[344454973,1733493034065,-285.28606039,7.607e-05,2]
[344454974,1733493034075,-200.0,7.677e-05,2]
[344454975,1733493034085,-3856.9344164,7.678e-05,2]
[344454976,1733493034095,-3856.9344164,7.678e-05,2]
[344454977,1733493034104,-2892.7008123,7.678e-05,2]
[344454978,1733493034113,-200.0,7.678e-05,2]
[344454979,1733493034122,-2892.7008123,7.679e-05,2]
[344454980,1733493034132,-3856.9344164,7.679e-05,2]
[344454981,1733493034141,-200.0,7.679e-05,2]
[344454982,1733493034151,-200.0,7.68e-05,2]
[344454983,1733493034160,-200.0,7.681e-05,2]
[344454984,1733493034170,-1627.14420692,7.681e-05,2]
[344454985,1733493034180,-2892.7008123,7.682e-05,2]
[344454986,1733493034190,-200.0,7.682e-05,2]
[344454987,1733493034200,-1627.14420692,7.682e-05,2]
[344454988,1733493034212,-200.0,7.684e-05,2]
[344454989,1733493034222,-693.9744242,7.685e-05,2]
[344454990,1733493034235,-778.71919486,7.685e-05,2]
[344455033,1733493038975,-1098.0,7.324e-05,2]
[344455035,1733493038984,-579.0,7.364e-05,2]
[344455037,1733493038993,-2384.24079734,7.685e-05,2]
[344455039,1733493039002,-200.0,7.685e-05,2]
[344455040,1733493039011,-1627.14420692,7.686e-05,2]
[344455041,1733493039020,-200.0,7.686e-05,2]
[344455042,1733493039029,-200.0,7.688e-05,2]
[344455043,1733493039038,-200.0,7.689e-05,2]
[344455044,1733493039047,-2892.7008123,7.689e-05,2]
[344455045,1733493039059,-200.0,7.689e-05,2]
[344455046,1733493039068,-2892.7008123,7.689e-05,2]
[344455047,1733493039077,-2892.7008123,7.689e-05,2]
[344455048,1733493039087,-2169.52560922,7.689e-05,2]
[344455049,1733493039096,-3856.9344164,7.69e-05,2]
[344455051,1733493039105,-200.0,7.69e-05,2]
[344455053,1733493039114,-200.0,7.691e-05,2]
[344455055,1733493039123,-200.0,7.691e-05,2]
[344455057,1733493039132,-1627.14420692,7.692e-05,2]
[344455059,1733493039141,-2169.52560922,7.692e-05,2]
[344455061,1733493039150,-2169.52560922,7.693e-05,2]
[344455063,1733493039159,-1627.14420692,7.693e-05,2]
[344455065,1733493039168,-200.0,7.693e-05,2]
[344455067,1733493039176,-200.0,7.694e-05,2]
[344455069,1733493039186,-1627.14420692,7.694e-05,2]
[344455071,1733493039195,-3856.9344164,7.696e-05,2]
[344455073,1733493039206,-724.46824122,7.697e-05,2]
[344455075,1733493039216,-543.35118091,7.697e-05,2]
[344455077,1733493039225,-1716.34861269,7.697e-05,2]
[344455079,1733493039235,-407.51338569,7.697e-05,2]
[344455081,1733493039243,-317.3912836,7.697e-05,2]
[344455083,1733493039254,-200.0,7.697e-05,2]
[344455085,1733493039263,-200.0,7.697e-05,2]
[344455087,1733493039273,-258.98868184,7.697e-05,2]
[344455089,1733493039282,-543.06342824,7.697e-05,2]
[344455091,1733493039291,-305.63503926,7.697e-05,2]
[344455093,1733493039302,-200.0,7.697e-05,2]
[344455095,1733493039311,-460.42432326,7.697e-05,2]
[344455097,1733493039320,-200.0,7.698e-05,2]
[344455099,1733493039329,-1287.26145952,7.698e-05,2]
[344455101,1733493039339,-200.0,7.698e-05,2]
[344455103,1733493039351,-460.42432326,7.698e-05,2]
[344455105,1733493039360,-965.44609464,7.698e-05,2]
[344455107,1733493039370,-1287.94353995,7.698e-05,2]
[344455109,1733493039379,-490.92,7.698e-05,2]
[344455111,1733493039389,-4068.38189676,7.698e-05,2]
[344455113,1733493039399,-229355.82850174,7.698e-05,2]
[344455115,1733493039408,-200.0,7.698e-05,2]
[344455117,1733493039417,-2169.52560922,7.698e-05,2]
[344455119,1733493039426,-509.31,7.698e-05,2]
[344455121,1733493039435,-490.26,7.698e-05,2]
[344455122,1733493039444,-493.01,7.698e-05,2]
[344455125,1733493039455,-818.53213025,7.698e-05,2]
[344455127,1733493039464,-200.0,7.698e-05,2]
[344455129,1733493039473,-460.42432326,7.698e-05,2]
[344455131,1733493039482,-4068.38189676,7.698e-05,2]
[344455133,1733493039491,-200.0,7.698e-05,2]
[344455135,1733493039500,-317.3912836,7.699e-05,2]
[344455137,1733493039509,-1716.34861269,7.699e-05,2]
[344455139,1733493039518,-200.0,7.699e-05,2]
[344455140,1733493039527,-2169.52560922,7.699e-05,2]
[344455143,1733493039536,-2169.52560922,7.699e-05,2]
[344455145,1733493039545,-1716.34861269,7.699e-05,2]
[344455147,1733493039556,-345.31824245,7.699e-05,2]
[344455149,1733493039565,-200.0,7.7e-05,2]
[344455151,1733493039574,-200.0,7.7e-05,2]
[344455153,1733493039583,-229.22627945,7.7e-05,2]
[344455155,1733493039593,-965.44609464,7.7e-05,2]
[344455156,1733493039602,-200.0,7.7e-05,2]
[344455158,1733493039615,-200.0,7.7e-05,2]
[344455160,1733493039625,-423.7,7.766e-05,2]
[344455162,1733493039634,-150.0,7.766e-05,2]
[344455164,1733493039643,-150.0,7.766e-05,2]
[344455166,1733493039653,-150.0,7.766e-05,2]
[344455168,1733493039661,-292.35,7.808e-05,2]
[344455170,1733493039671,-279.39,7.832e-05,2]
[344455172,1733493039680,-285.28606039,7.847e-05,2]
[344455174,1733493039690,-7334.0,7.863e-05,2]
[344455176,1733493039699,-373.38131312,7.888e-05,2]
[344455178,1733493039708,-43572.205417,7.945e-05,2]
[344455180,1733493039718,-285.28606039,7.993e-05,2]
[344455182,1733493039730,-1522.11996757,8e-05,2]
[344455184,1733493039739,-759.88,8e-05,2]
[344455186,1733493039748,-759.88,8e-05,2]
[344455188,1733493039757,-759.88,8e-05,2]
[344455190,1733493039766,-759.88,8e-05,2]
[344455192,1733493039775,-759.88,8e-05,2]
[344455194,1733493039785,-759.88,8e-05,2]
[344455196,1733493039794,-759.88,8e-05,2]
[344455198,1733493039805,-759.88,8e-05,2]
[344455200,1733493039817,-759.88,8e-05,2]
[344455202,1733493039827,-759.88,8e-05,2]
[344455204,1733493039836,-759.88,8e-05,2]
[344455206,1733493039845,-759.88,8e-05,2]
[344455208,1733493039854,-759.88,8e-05,2]
[344455210,1733493039863,-759.88,8e-05,2]
[344455212,1733493039872,-759.88,8e-05,2]
[344455214,1733493039881,-759.88,8e-05,2]
[344455216,1733493039890,-759.88,8e-05,2]
[344455218,1733493039899,-759.88,8e-05,2]
[344455220,1733493039909,-759.88,8e-05,2]
[344455222,1733493039918,-759.88,8e-05,2]
[344455224,1733493039927,-441.05,8.073e-05,2]
[344455226,1733493039936,-367.77,8.078e-05,2]
[344455227,1733493039946,-296.0,8.11e-05,2]
[344455229,1733493039955,-150.0,8.135e-05,2]
[344455231,1733493039964,-150.0,8.135e-05,2]
[344455233,1733493039974,-150.0,8.135e-05,2]
[344455235,1733493039983,-150.0,8.135e-05,2]
[344455237,1733493039992,-150.0,8.135e-05,2]
[344455239,1733493040002,-150.0,8.135e-05,2]
[344455241,1733493040011,-150.0,8.135e-05,2]
[344455242,1733493040020,-150.0,8.135e-05,2]
[344455244,1733493040029,-150.0,8.135e-05,2]
[344455246,1733493040038,-150.0,8.135e-05,2]
[344455248,1733493040047,-150.0,8.135e-05,2]
[344455250,1733493040059,-150.0,8.135e-05,2]
[344455252,1733493040068,-150.0,8.135e-05,2]
[344455254,1733493040077,-150.0,8.135e-05,2]
[344455256,1733493040086,-437.54,8.135e-05,2]
[344455258,1733493040095,-683.935238,8.178e-05,2]
[344455260,1733493040105,-701.22,8.219e-05,2]
[344455262,1733493040114,-240.57,8.219e-05,2]
[344455264,1733493040123,-1139.27,8.219e-05,2]
[344455268,1733493040132,-515.663484,8.219e-05,2]
[344455270,1733493040141,-515.663484,8.219e-05,2]
[344455272,1733493040150,-515.663484,8.219e-05,2]
[344455274,1733493040160,-515.663484,8.219e-05,2]
[344455276,1733493040169,-1000.0,8.219e-05,2]